fUSD/lending_fUSD_20260408
["ID","MTS","AMOUNT","RATE_DAILY","PERIOD"]
[420062803,1775644172411,-1000.0,9.233e-05,2]
[420062804,1775644172590,-1000.0,9.233e-05,2]
[420062805,1775644183719,-1000.0,9.233e-05,2]
[420062806,1775644184101,-702.48,9.233e-05,2]
[420062807,1775644184126,-297.52,9.243e-05,2]
[420062808,1775644184502,-202.48,9.243e-05,2]
[420062809,1775644184526,-500.0,9.243e-05,2]
[420062810,1775644184550,-297.52,9.243e-05,2]
[420062811,1775644184929,-202.48,9.243e-05,2]
[420062812,1775644184956,-500.0,9.243e-05,2]
[420062813,1775644184983,-297.52,9.243e-05,2]
[420062814,1775644185281,-202.48,9.243e-05,2]
[420062815,1775644185307,-797.52,9.256e-05,2]
[420062816,1775644185609,-1000.0,9.256e-05,2]
[420062817,1775644186461,-1000.0,9.256e-05,2]
[420062818,1775644186813,-1000.0,9.256e-05,2]
[420062819,1775644187209,-1000.0,9.256e-05,2]
[420062820,1775644187536,-1000.0,9.256e-05,2]
[420062821,1775644187937,-1000.0,9.256e-05,2]
[420062822,1775644194855,-1000.0,9.256e-05,2]
[420062823,1775644195212,-1000.0,9.256e-05,2]
[420062824,1775644195617,-1000.0,9.256e-05,2]
[420062825,1775644196010,-202.48,9.256e-05,2]
[420062826,1775644196036,-500.0,9.265e-05,2]
[420062827,1775644196062,-297.52,9.265e-05,2]
[420062828,1775644197189,-202.48,9.265e-05,2]
[420062829,1775644197250,-500.0,9.265e-05,2]
[420062830,1775644197276,-297.52,9.265e-05,2]
[420062831,1775644197357,-202.48,9.265e-05,2]
[420062832,1775644197382,-208.10175027,9.265e-05,2]
[420062833,1775644197408,-500.0,9.265e-05,2]
[420062834,1775644197434,-89.41824973,9.265e-05,2]
[420062835,1775644197471,-92.51793251,9.265e-05,2]
[420062836,1775644197496,-314.41063288,9.265e-05,2]
[420062837,1775644197521,-276.1094643,9.265e-05,2]
[420062838,1775644197553,-316.96197031,9.265e-05,2]
[420062839,1775644197901,-183.03802969,9.265e-05,2]
[420062840,1775644197931,-500.0,9.265e-05,2]
[420062841,1775644197963,-316.96197031,9.265e-05,2]
[420062842,1775644198277,-183.03802969,9.265e-05,2]
[420062843,1775644198310,-500.0,9.265e-05,2]
[420062844,1775644198342,-316.96197031,9.265e-05,2]
[420062845,1775644198641,-183.03802969,9.265e-05,2]
[420062846,1775644198672,-500.0,9.265e-05,2]
[420062847,1775644198705,-316.96197031,9.265e-05,2]
[420062848,1775644201650,-300.0,9.264e-05,2]
[420062849,1775644201678,-700.0,9.264e-05,2]
[420062850,1775644202725,-500.0,9.243e-05,2]
[420062851,1775644202752,-500.0,9.264e-05,2]
[420062852,1775644203541,-150.0,9.264e-05,2]
[420062853,1775644203568,-300.0,9.264e-05,2]
[420062854,1775644203600,-183.03802969,9.265e-05,2]
[420062855,1775644203632,-366.96197031,9.265e-05,2]
[420062856,1775644206533,152.0,9.265e-05,3]
[420062857,1775644213914,-1000.0,9.233e-05,2]
[420062858,1775644214673,-1000.0,9.233e-05,2]
[420062859,1775644216932,-1000.0,9.233e-05,2]
[420062860,1775644217193,-5707.338134,9.233e-05,2]
[420062861,1775644217894,-1000.0,9.233e-05,2]
[420062862,1775644218758,-1000.0,9.233e-05,2]
[420062863,1775644218928,-10000.01,9.233e-05,2]
[420062864,1775644219035,-3342.011866,9.233e-05,2]
[420062865,1775644219067,-500.0,9.265e-05,2]
[420062866,1775644219103,-133.03802969,9.265e-05,2]
[420062867,1775644219139,-500.0,9.265e-05,2]
[420062868,1775644219176,-500.0,9.265e-05,2]
[420062869,1775644219327,-500.0,9.265e-05,2]
[420062870,1775644219363,-500.0,9.265e-05,2]
[420062871,1775644219400,-500.0,9.265e-05,2]
[420062872,1775644219439,-500.0,9.265e-05,2]
[420062873,1775644219476,-500.0,9.265e-05,2]
[420062874,1775644219512,-500.0,9.265e-05,2]
[420062875,1775644219548,-500.0,9.265e-05,2]
[420062876,1775644219591,-500.0,9.265e-05,2]
[420062877,1775644219634,-500.0,9.265e-05,2]
[420062878,1775644219670,-500.0,9.265e-05,2]
[420062879,1775644219798,-500.0,9.265e-05,2]
[420062880,1775644219835,-500.0,9.265e-05,2]
[420062881,1775644219871,-500.0,9.265e-05,2]
[420062882,1775644219908,-500.0,9.265e-05,2]
[420062883,1775644219944,-500.0,9.265e-05,2]
[420062884,1775644219980,-275.55583944,9.265e-05,2]
[420062885,1775644220016,-500.0,9.265e-05,2]
[420062886,1775644220052,-500.0,9.265e-05,2]
[420062887,1775644220086,-500.0,9.265e-05,2]
[420062888,1775644220121,-500.0,9.265e-05,2]
[420062889,1775644220259,-500.0,9.265e-05,2]
[420062890,1775644220708,-500.0,9.265e-05,2]
[420062891,1775644220746,-500.0,9.265e-05,2]
[420062892,1775644220783,-500.0,9.265e-05,2]
[420062893,1775644220819,-500.0,9.265e-05,2]
[420062894,1775644220856,-500.0,9.265e-05,2]
[420062895,1775644220893,-500.0,9.265e-05,2]
[420062896,1775644220928,-500.0,9.265e-05,2]
[420062897,1775644220962,-500.0,9.265e-05,2]
[420062898,1775644220997,-500.0,9.265e-05,2]
[420062899,1775644221383,-500.0,9.265e-05,2]
[420062900,1775644221421,-500.0,9.265e-05,2]
[420062901,1775644221459,-500.0,9.265e-05,2]
[420062902,1775644221499,-500.0,9.265e-05,2]
[420062903,1775644221537,-500.0,9.265e-05,2]
[420062904,1775644221575,-500.0,9.265e-05,2]
[420062905,1775644221613,-500.0,9.265e-05,2]
[420062906,1775644221651,-500.0,9.265e-05,2]
[420062907,1775644221689,-500.0,9.265e-05,2]
[420062908,1775644221726,-500.0,9.265e-05,2]
[420062909,1775644221846,-500.0,9.265e-05,2]
[420062910,1775644221882,-500.0,9.265e-05,2]
[420062911,1775644221918,-500.0,9.265e-05,2]
[420062912,1775644221954,-500.0,9.265e-05,2]
[420062913,1775644221991,-500.0,9.265e-05,2]
[420062914,1775644222029,-500.0,9.265e-05,2]
[420062915,1775644222066,-500.0,9.265e-05,2]
[420062916,1775644222102,-500.0,9.265e-05,2]
[420062917,1775644222138,-500.0,9.265e-05,2]
[420062918,1775644222175,-500.0,9.265e-05,2]
[420062919,1775644222310,-500.0,9.265e-05,2]
[420062920,1775644222346,-500.0,9.265e-05,2]
[420062921,1775644222384,-500.0,9.265e-05,2]
[420062922,1775644222419,-500.0,9.265e-05,2]
[420062923,1775644222457,-500.0,9.265e-05,2]
[420062924,1775644222492,-500.0,9.265e-05,2]
[420062925,1775644222529,-500.0,9.265e-05,2]
[420062926,1775644222567,-500.0,9.265e-05,2]
[420062927,1775644222604,-500.0,9.265e-05,2]
[420062928,1775644222640,-500.0,9.265e-05,2]
[420062929,1775644222768,-500.0,9.265e-05,2]
[420062930,1775644222806,-500.0,9.265e-05,2]
[420062931,1775644222843,-155.0,9.265e-05,2]
[420062932,1775644222897,-386.71698126,9.266e-05,2]
[420062933,1775644222924,-613.28301874,9.266e-05,2]
[420062934,1775644225673,-1000.0,9.266e-05,2]
[420062935,1775644226066,-10000.01,9.266e-05,2]
[420062936,1775644226097,-10000.01,9.266e-05,2]
[420062937,1775644226113,-10000.01,9.266e-05,2]
[420062938,1775644226143,-10000.01,9.266e-05,2]
[420062939,1775644226158,-10000.01,9.266e-05,2]
[420062940,1775644226178,-10000.01,9.266e-05,2]
[420062941,1775644226205,-10000.01,9.266e-05,2]
[420062942,1775644226233,-10000.01,9.266e-05,2]
[420062943,1775644226269,-10000.01,9.266e-05,2]
[420062944,1775644226326,-10000.01,9.266e-05,2]
[420062945,1775644226417,-10000.01,9.266e-05,2]
[420062946,1775644228533,-10000.01,9.266e-05,2]
[420062947,1775644228548,-10000.01,9.266e-05,2]
[420062948,1775644228941,-1000.0,9.266e-05,2]
[420062949,1775644230081,-1000.0,9.266e-05,2]
[420062950,1775644231217,-1000.0,9.266e-05,2]
[420062952,1775644232676,-410.55372032,9.266e-05,2]
[420062953,1775644232688,-2012.78354579,9.266e-05,2]
[420062954,1775644232701,-538.32394089,9.266e-05,2]
[420062955,1775644232713,-485.0194,9.266e-05,2]
[420062956,1775644232725,-46683.57353203,9.266e-05,2]
[420062957,1775644232737,-140220.69422063,9.266e-05,2]
[420062958,1775644232749,-2755.17825888,9.266e-05,2]
[420062959,1775644232761,-106575.44639592,9.266e-05,2]
[420062960,1775644232774,-18158.61043862,9.266e-05,2]
[420062961,1775644232786,-2498.70757123,9.266e-05,2]
[420062962,1775644232799,-299.93729572,9.266e-05,2]
[420063006,1775644239456,-1817.3692268,9.266e-05,2]
[420063007,1775644240863,-356.4230969,9.266e-05,2]
[420063009,1775644242970,-0.20586235,9.266e-05,2]
[420063022,1775644245133,-2011791.23497518,9.266e-05,2]
[420063023,1775644245144,-695.9201,9.266e-05,2]
[420063024,1775644245155,-426.0014,9.266e-05,2]
[420063025,1775644245165,-2500.0,9.266e-05,2]
[420063026,1775644245176,-500.0,9.343e-05,2]
[420063027,1775644245187,-500.0,9.343e-05,2]
[420063028,1775644245197,-500.0,9.343e-05,2]
[420063029,1775644245207,-500.0,9.343e-05,2]
[420063030,1775644245218,-500.0,9.343e-05,2]
[420063031,1775644245229,-5000.0,9.366e-05,2]
[420063032,1775644245240,-378.78020416,9.366e-05,2]
[420063033,1775644245252,-3000.0,9.366e-05,2]
[420063034,1775644245263,-500.0,9.366e-05,2]
[420063035,1775644245274,-1500000.0,9.366e-05,2]
[420063036,1775644245285,-5000.0,9.413e-05,2]
[420063037,1775644245296,-11325.10020531,9.413e-05,2]
[420063038,1775644245307,-2738.68947605,9.413e-05,2]
[420063039,1775644245317,-21376.0,9.425e-05,2]
[420063040,1775644245340,-550.3869963,9.443e-05,2]
[420063041,1775644245358,-500.0,9.443e-05,2]
[420063042,1775644245370,-5000.0,9.444e-05,2]
[420063043,1775644245382,-602.8020892,9.465e-05,2]
[420063044,1775644245394,-749.93,9.465e-05,2]
[420063045,1775644245405,-301.85770587,9.466e-05,2]
[420063046,1775644245416,-1527.0,9.466e-05,2]
[420063047,1775644245427,-1527.0,9.466e-05,2]
[420063048,1775644245438,-152.0,9.466e-05,2]
[420063049,1775644245449,-1527.0,9.466e-05,2]
[420063050,1775644245461,-152.0,9.466e-05,2]
[420063051,1775644245472,-1527.0,9.466e-05,2]
[420063052,1775644245482,-152.0,9.466e-05,2]
[420063053,1775644245494,-1527.0,9.466e-05,2]
[420063054,1775644245505,-152.0,9.466e-05,2]
[420063055,1775644245516,-152.0,9.466e-05,2]
[420063056,1775644245528,-152.0,9.466e-05,2]
[420063057,1775644245539,-1527.0,9.466e-05,2]
[420063058,1775644245551,-1527.0,9.466e-05,2]
[420063059,1775644245563,-152.0,9.466e-05,2]
[420063060,1775644245575,-1527.0,9.466e-05,2]
[420063061,1775644245586,-152.0,9.466e-05,2]
[420063062,1775644245598,-1527.0,9.466e-05,2]
[420063063,1775644245611,-152.0,9.466e-05,2]
[420063064,1775644245622,-152.0,9.466e-05,2]
[420063065,1775644245633,-1527.0,9.466e-05,2]
[420063066,1775644245645,-154.22301552,9.466e-05,2]
[420063067,1775644245657,-1527.0,9.466e-05,2]
[420063068,1775644245669,-152.0,9.466e-05,2]
[420063069,1775644245680,-1527.0,9.466e-05,2]
[420063070,1775644245692,-1527.0,9.466e-05,2]
[420063071,1775644245705,-1527.0,9.466e-05,2]
[420063072,1775644245716,-1527.0,9.466e-05,2]
[420063073,1775644245728,-1552.49500782,9.466e-05,2]
[420063074,1775644245739,-301.0,9.485e-05,2]
[420063075,1775644245750,-10000.0,9.507e-05,2]
[420063076,1775644245762,-151.0,9.538e-05,2]
[420063077,1775644245774,-500.0,9.539e-05,2]
[420063078,1775644245788,-1970.0,9.546e-05,2]
[420063079,1775644245800,-561.0,9.56e-05,2]
[420063080,1775644245812,-491.0,9.56e-05,2]
[420063081,1775644245835,-549.0,9.561e-05,2]
[420063082,1775644245846,-153.0,9.561e-05,2]
[420063083,1775644245858,-201.0,9.563e-05,2]
[420063084,1775644245869,-4522.12,9.563e-05,2]
[420063085,1775644245881,-9999.99,9.563e-05,2]
[420063086,1775644245894,-9999.99,9.563e-05,2]
[420063087,1775644245905,-150.99,9.563e-05,2]
[420063088,1775644245917,-299.99,9.563e-05,2]
[420063089,1775644245928,-499.99,9.563e-05,2]
[420063090,1775644245941,-1575.11,9.563e-05,2]
[420063091,1775644245952,-999.99,9.563e-05,2]
[420063092,1775644245963,-7611.53,9.563e-05,2]
[420063093,1775644245974,-150.99,9.563e-05,2]
[420063094,1775644245985,-8227.27,9.563e-05,2]
[420063095,1775644245997,-5383.62,9.563e-05,2]
[420063096,1775644246009,-9999.99,9.563e-05,2]
[420063097,1775644246020,-170.37881708,9.566e-05,2]
[420063098,1775644246031,-150.0,9.57e-05,2]
[420063099,1775644246041,-252.0,9.574e-05,2]
[420063100,1775644246053,-158.0,9.579e-05,2]
[420063101,1775644246065,-487.0,9.592e-05,2]
[420063102,1775644246076,-150.0,9.6e-05,2]
[420063103,1775644246086,-262.0,9.611e-05,2]
[420063104,1775644246098,-293.0,9.618e-05,2]
[420063105,1775644246109,-441.0,9.662e-05,2]
[420063106,1775644246121,-1152.33695723,9.666e-05,3]
[420063107,1775644246133,-1152.33695723,9.666e-05,3]
[420063108,1775644246145,-19999.99,9.67e-05,2]
[420063109,1775644246156,-426.0,9.678e-05,2]
[420063110,1775644246168,-380391.89246271,9.691e-05,2]
[420063111,1775644246180,-1600.0,9.718e-05,2]
[420063112,1775644246191,-749.93,9.739e-05,2]
[420063113,1775644246203,-353.62967572,9.791e-05,2]
[420063114,1775644246214,-500.0,9.791e-05,2]
[420063115,1775644246225,-501.73893264,9.791e-05,2]
[420063116,1775644246237,-6011.81,9.811e-05,2]
[420063117,1775644246248,-500.0,9.813e-05,2]
[420063118,1775644246260,-500.0,9.891e-05,2]
[420063119,1775644246272,-500.0,9.891e-05,2]
[420063120,1775644246283,-500.54232895,9.891e-05,2]
[420063121,1775644246295,-500.0,9.891e-05,2]
[420063122,1775644246307,-151.0,9.947e-05,2]
[420063123,1775644246325,-235.19,9.949e-05,2]
[420063124,1775644246337,-500.87166627,9.991e-05,2]
[420063125,1775644246350,-1000.0,9.991e-05,2]
[420063126,1775644246362,-489.18139785,0.0001,2]
[420063127,1775644246374,-15117.26040413,0.0001,2]
[420063128,1775644246386,-348.68212697,0.0001,2]
[420063129,1775644246399,-312.54243251,0.0001,2]
[420063130,1775644246410,-312.54243251,0.0001,2]
[420063131,1775644246421,-312.54243251,0.0001,2]
[420063132,1775644246432,-151.0,0.0001,2]
[420063133,1775644246443,-151.0,0.0001,2]
[420063134,1775644246455,-151.0,0.0001,2]
[420063135,1775644246466,-151.0,0.0001,2]
[420063136,1775644246478,-151.0,0.0001,2]
[420063137,1775644246489,-151.0,0.0001,2]
[420063138,1775644246502,-500.0,0.0001,2]
[420063139,1775644246514,-151.0,0.0001,2]
[420063140,1775644246525,-500.0,0.0001,2]
[420063141,1775644246537,-151.0,0.0001,2]
[420063142,1775644246548,-500.0,0.0001,2]
[420063143,1775644246560,-151.0,0.0001,2]
[420063144,1775644246571,-500.0,0.0001,2]
[420063145,1775644246582,-151.0,0.0001,2]
[420063146,1775644246593,-500.0,0.0001,2]
[420063147,1775644246604,-500.0,0.0001,2]
[420063148,1775644246615,-151.0,0.0001,2]
[420063149,1775644246626,-500.0,0.0001,2]
[420063150,1775644246638,-151.0,0.0001,2]
[420063151,1775644246650,-500.0,0.0001,2]
[420063152,1775644246662,-151.0,0.0001,2]
[420063153,1775644246673,-151.0,0.0001,2]
[420063154,1775644246684,-500.0,0.0001,2]
[420063155,1775644246694,-151.0,0.0001,2]
[420063156,1775644246705,-500.0,0.0001,2]
[420063157,1775644246716,-500.0,0.0001,2]
[420063158,1775644246727,-500.0,0.0001,2]
[420063159,1775644246739,-500.0,0.0001,2]
[420063160,1775644246750,-500.0,0.0001,2]
[420063161,1775644246761,-500.0,0.0001,2]
[420063162,1775644246773,-500.0,0.0001,2]
[420063163,1775644246785,-500.0,0.0001,2]
[420063164,1775644246797,-500.0,0.0001,2]
[420063165,1775644246812,-151.0,0.0001,2]
[420063166,1775644246823,-500.0,0.0001,2]
[420063167,1775644246834,-151.0,0.0001,2]
[420063168,1775644246846,-500.0,0.0001,2]
[420063169,1775644246857,-151.0,0.0001,2]
[420063170,1775644246869,-500.0,0.0001,2]
[420063171,1775644246881,-151.0,0.0001,2]
[420063172,1775644246892,-500.0,0.0001,2]
[420063173,1775644246904,-151.0,0.0001,2]
[420063174,1775644246915,-500.0,0.0001,2]
[420063175,1775644246927,-151.0,0.0001,2]
[420063176,1775644246938,-500.0,0.0001,2]
[420063177,1775644246949,-151.0,0.0001,2]
[420063178,1775644246960,-500.0,0.0001,2]
[420063179,1775644246971,-151.0,0.0001,2]
[420063180,1775644246982,-151.0,0.0001,2]
[420063181,1775644246992,-500.0,0.0001,2]
[420063182,1775644247004,-151.0,0.0001,2]
[420063183,1775644247015,-500.0,0.0001,2]
[420063184,1775644247026,-151.0,0.0001,2]
[420063185,1775644247037,-500.0,0.0001,2]
[420063186,1775644247048,-151.0,0.0001,2]
[420063187,1775644247059,-151.0,0.0001,2]
[420063188,1775644247070,-151.0,0.0001,2]
[420063189,1775644247082,-151.0,0.0001,2]
[420063190,1775644247093,-500.0,0.0001,2]
[420063191,1775644247104,-151.0,0.0001,2]
[420063192,1775644247115,-500.0,0.0001,2]
[420063193,1775644247126,-151.0,0.0001,2]
[420063194,1775644247137,-151.0,0.0001,2]
[420063195,1775644247148,-151.0,0.0001,2]
[420063196,1775644247159,-151.0,0.0001,2]
[420063197,1775644247170,-151.0,0.0001,2]
[420063198,1775644247181,-1199.20597017,0.0001,2]
[420063199,1775644247192,-151.0,0.0001,2]
[420063201,1775644247204,-305.48909807,0.0001,2]
[420063203,1775644247215,-305.48909807,0.0001,2]
[420063204,1775644247225,-749.93,0.00010013,2]
[420063205,1775644247236,-261.69532138,0.000101,2]
[420063206,1775644247247,-151.0,0.00010145,2]
[420063207,1775644247259,-420.0,0.0001019,2]
[420063208,1775644247270,-1680.0,0.0001019,2]
[420063209,1775644247281,-255.0,0.0001019,2]
[420063210,1775644247292,-420.0,0.0001019,2]
[420063211,1775644247303,-250.0,0.00010192,2]
[420063212,1775644247314,-5000.0,0.00010193,2]
[420063213,1775644247325,-749.93,0.00010287,2]
[420063214,1775644247336,-5000.0,0.00010302,2]
[420063215,1775644247347,-250.0,0.00010302,2]
[420063216,1775644247358,-1500.0,0.00010538,2]
[420063217,1775644247369,-588.0,0.00010548,2]
[420063218,1775644247381,-749.93,0.00010561,2]
[420063219,1775644247392,-10000.0,0.000106,2]
[420063220,1775644247403,-305.48909807,0.0001069,2]
[420063221,1775644247415,-151.0,0.00010697,2]
[420063222,1775644247425,-151.0,0.00010697,2]
[420063223,1775644247436,-3970339.37722031,0.000107,2]
[420063224,1775644247448,-235.19,0.00010714,2]
[420063225,1775644247470,-1600.0,0.00010797,2]
[420063226,1775644247485,-749.95,0.00010835,2]
[420063227,1775644247497,-151.0,0.00010959,2]
[420063228,1775644247509,-151.0,0.00010959,2]
[420063229,1775644247521,-151.0,0.00010959,2]
[420063230,1775644247534,-151.0,0.00010959,2]
[420063231,1775644248152,-172.3631,0.00011,2]
[420063232,1775644248164,-1017.45482461,0.00011086,2]
[420063233,1775644248175,-2351.0,0.00011209,2]
[420063234,1775644248186,-433.0,0.00011209,2]
[420063235,1775644248196,-587.0,0.00011209,2]
[420063236,1775644248206,-247.84704228,0.0001122,2]
[420063237,1775644248217,-235.19,0.0001148,2]
[420063238,1775644248227,-6606.39,0.00011507,2]
[420063239,1775644248238,-500.0,0.00011507,2]
[420063240,1775644248248,-250.0,0.00011555,2]
[420063241,1775644248259,-1600.0,0.00011877,2]
[420063242,1775644248276,-9891.79784351,0.00012,7]
[420063243,1775644248287,-500.0,0.00012,2]
[420063244,1775644248299,-45025.43,0.00012055,2]
[420063245,1775644248311,-3292.0,0.0001233,2]
[420063246,1775644248322,-736.0,0.0001233,2]
[420063247,1775644248334,-823.0,0.0001233,2]
[420063248,1775644248345,-198.0603,0.000124,2]
[420063249,1775644248357,-11325.10020531,0.00012607,2]
[420063250,1775644248367,-2738.68947605,0.00012607,2]
[420063251,1775644248379,-2000.0,0.00012882,2]
[420063252,1775644248391,-1603.89,0.00012882,2]
[420063253,1775644248402,-329.34,0.00012882,2]
[420063254,1775644248414,-7611.29,0.00012882,2]
[420063255,1775644248425,-1600.0,0.00012957,2]
[420063256,1775644248436,-81454.46287592,0.00012999,2]
[420063257,1775644248447,-250.0,0.00013,2]
[420063258,1775644248458,-500.0,0.00013014,2]
[420063259,1775644248469,-3620.21391383,0.0001305,2]
[420063260,1775644248481,-150.0,0.00013063,2]
[420063261,1775644248491,-150.0,0.00013064,2]
[420063262,1775644248503,-507.0,0.000131,2]
[420063263,1775644248515,-166.66,0.00013269,2]
[420063264,1775644248526,-160.0,0.00013425,2]
[420063265,1775644248537,-500.323984,0.00013425,2]
[420063266,1775644248548,-840.647968,0.00013425,2]
[420063267,1775644248560,-397.803673,0.00013425,2]
[420063268,1775644248571,-3240.0,0.00013425,2]
[420063269,1775644248583,-150.0,0.00013425,2]
[420063270,1775644248595,-150.0,0.00013425,2]
[420063271,1775644248606,-150.0,0.00013425,2]
[420063272,1775644248617,-182.15202066,0.00013425,2]
[420063273,1775644248628,-150.0,0.00013425,2]
[420063274,1775644248640,-151.55394064,0.00013425,2]
[420063275,1775644248651,-500.0,0.00013425,2]
[420063276,1775644248663,-500.0,0.00013425,2]
[420063277,1775644248674,-500.0,0.00013425,2]
[420063278,1775644248685,-500.0,0.00013425,2]
[420063279,1775644248697,-500.0,0.00013425,2]
[420063280,1775644248708,-500.0,0.00013425,2]
[420063281,1775644248718,-500.0,0.00013425,2]
[420063282,1775644248729,-165.86332065,0.00013425,2]
[420063283,1775644248741,-500.0,0.00013425,2]
[420063284,1775644248752,-500.0,0.00013425,2]
[420063285,1775644248763,-500.0,0.00013425,2]
[420063286,1775644248775,-500.0,0.00013425,2]
[420063287,1775644248786,-399.40597196,0.00013425,2]
[420063288,1775644248799,-500.0,0.00013425,2]
[420063289,1775644248811,-341.376807,0.00013425,2]
[420063290,1775644248822,-500.0,0.00013425,2]
[420063291,1775644248833,-500.0,0.00013425,2]
[420063292,1775644248845,-500.0,0.00013425,2]
[420063293,1775644248857,-150.0,0.00013425,2]
[420063294,1775644248868,-339.81765262,0.00013425,2]
[420063295,1775644248880,-500.0,0.00013425,2]
[420063296,1775644248891,-160.5097946,0.00013425,2]
[420063297,1775644248902,-500.0,0.00013425,2]
[420063298,1775644248913,-388.39476597,0.00013425,2]
[420063299,1775644248924,-151.26762084,0.00013425,2]
[420063300,1775644248936,-150.36042852,0.00013425,2]
[420063301,1775644248947,-150.88467267,0.00013425,2]
[420063302,1775644248957,-150.0,0.00013425,2]
[420063303,1775644248968,-200.0,0.00013425,2]
[420063304,1775644248979,-1026.0,0.00013425,2]
[420063305,1775644248990,-1026.0,0.00013425,2]
[420063306,1775644249002,-1026.0,0.00013425,2]
[420063307,1775644249013,-1026.0,0.00013425,2]
[420063308,1775644249025,-818.4889753,0.00013425,2]
[420063309,1775644249370,-151.0,0.00010142,2]
[420063310,1775644249381,-207.5110247,0.00013425,2]
[420063311,1775644249393,-1026.0,0.00013425,2]
[420063312,1775644249404,-1026.0,0.00013425,2]
[420063313,1775644249415,-1026.0,0.00013425,2]
[420063314,1775644249426,-1026.0,0.00013425,2]
[420063315,1775644249437,-1026.0,0.00013425,2]
[420063316,1775644249447,-1026.0,0.00013425,2]
[420063317,1775644249458,-1026.0,0.00013425,2]
[420063318,1775644249469,-1026.0,0.00013425,2]
[420063319,1775644249480,-1026.0,0.00013425,2]
[420063320,1775644249490,-1026.0,0.00013425,2]
[420063321,1775644249501,-1026.0,0.00013425,2]
[420063322,1775644249511,-1026.0,0.00013425,2]
[420063323,1775644249522,-1026.0,0.00013425,2]
[420063324,1775644249532,-1026.0,0.00013425,2]
[420063325,1775644249543,-1026.0,0.00013425,2]
[420063326,1775644249554,-1026.0,0.00013425,2]
[420063327,1775644249565,-1026.0,0.00013425,2]
[420063328,1775644249577,-1026.0,0.00013425,2]
[420063329,1775644249587,-1027.72513774,0.00013425,2]
[420063330,1775644249598,-150.0,0.00013425,2]
[420063331,1775644249609,-500.0,0.00013425,2]
[420063332,1775644249619,-500.0,0.00013425,2]
[420063333,1775644249630,-500.0,0.00013425,2]
[420063334,1775644249641,-500.0,0.00013425,2]
[420063335,1775644249651,-500.0,0.00013425,2]
[420063336,1775644249662,-500.0,0.00013425,2]
[420063337,1775644249673,-153.37566176,0.00013425,2]
[420063338,1775644249683,-500.0,0.00013425,2]
[420063339,1775644249694,-500.0,0.00013425,2]
[420063340,1775644249705,-500.0,0.00013425,2]
[420063341,1775644249715,-500.0,0.00013425,2]
[420063342,1775644249726,-500.0,0.00013425,2]
[420063343,1775644249737,-291.10003212,0.00013425,2]
[420063344,1775644249748,-500.0,0.00013425,2]
[420063345,1775644249758,-500.0,0.00013425,2]
[420063346,1775644249769,-500.0,0.00013425,2]
[420063347,1775644249779,-500.0,0.00013425,2]
[420063348,1775644249790,-500.0,0.00013425,2]
[420063349,1775644249800,-500.0,0.00013425,2]
[420063350,1775644249810,-500.0,0.00013425,2]
[420063351,1775644249821,-500.0,0.00013425,2]
[420063352,1775644249832,-500.0,0.00013425,2]
[420063353,1775644249842,-501.37015049,0.00013425,2]
[420063354,1775644249853,-500.0,0.00013425,2]
[420063355,1775644249863,-500.0,0.00013425,2]
[420063356,1775644249874,-150.0,0.00013425,2]
[420063357,1775644250093,-500.0,0.00013425,2]
[420063358,1775644250105,-500.0,0.00013425,2]
[420063359,1775644250116,-500.0,0.00013425,2]
[420063360,1775644250127,-500.0,0.00013425,2]
[420063361,1775644250138,-500.0,0.00013425,2]